Cogmind - Beta 10.2 @@@ ROGUE MODE // 2021.07.31 @ 19:27:38 Player: Demise Result: Destroyed by G-47 Trooper with Particle Gun Performance ------------- Evolutions (0) 0 Regions Visited (2) 400 Robots Destroyed (34) 170 Value Destroyed (859) 859 Prototype IDs (0) 0 Alien Tech Used (0) 0 Bonus (0) 0 TOTAL SCORE: 1429 Bonus ------- None Cogmind --------- Core Integrity 0/250 Matter 299/300 Energy 250/250 System Corruption 3% Temperature Cool (9) Movement Rolling (110) Ox1 Location -10/Mines Parts ------- > --- POWER (1) -------- Ion Engine > --- PROPULSION (2) --- Compact Wheel Compact Wheel > --- UTILITY (2) ------ Large Storage Unit Large Storage Unit > --- WEAPON (2) ------- Light Assault Rifle Autogun > --- INVENTORY (16) --- Light Ion Engine Large Storage Unit Large Storage Unit Signal Interpreter Core Shielding Hacking Suite EM Pulse Gun EM Pulse Gun Light Assault Rifle Light Assault Rifle Light Assault Rifle Light Assault Rifle Mini Grenade Launcher Mini Grenade Launcher Datajack Mining Claw Peak State ------------ > --- POWER ------------ Ion Engine > --- PROPULSION ------- Compact Wheel Compact Wheel > --- UTILITY ---------- Large Storage Unit Large Storage Unit > --- WEAPON ----------- Autogun Mini Grenade Launcher > --- INVENTORY -------- Light Ion Engine Large Storage Unit Large Storage Unit Signal Interpreter Core Shielding Hacking Suite EM Pulse Gun EM Pulse Gun Light Assault Rifle Light Assault Rifle Light Assault Rifle Light Assault Rifle Light Assault Rifle Mini Grenade Launcher Datajack Mining Claw [Rating: 10] Favorites ----------- Power Ion Engine Engine Ion Engine Propulsion Light Treads Treads Light Treads Leg Aluminum Leg Wheel Compact Wheel Utility Large Storage Unit Storage Large Storage Unit Weapon Light Assault Rifle Energy Gun EM Pulse Gun Ballistic Gun Light Assault Rifle Launcher Grenade Launcher Build | -11 -10 -10 ------- Run | Scr Mat Min Slots Evolved . | . . . Power . | . . . Propulsion . | . . . Utility . | . . . Weapon . | . . . Parts Attached 31 | 4 27 . Power 1 | . 1 . Engine 1 | . 1 . Core . | . . . Reactor . | . . . Propulsion 11 | 2 9 . Treads 8 | 2 6 . Leg 1 | . 1 . Wheel 2 | . 2 . Hover . | . . . Flight . | . . . Utility 2 | . 2 . Device . | . . . Storage 2 | . 2 . Processor . | . . . Hackware . | . . . Protection . | . . . Artifact . | . . . Weapon 17 | 2 15 . Energy Gun 3 | . 3 . Energy Cannon . | . . . Ballistic Gun 11 | 2 9 . Ballistic Cannon . | . . . Launcher 3 | . 3 . Special Weapon . | . . . Impact Weapon . | . . . Slashing Weapon . | . . . Piercing Weapon . | . . . Special Melee Weapon . | . . . Unidentified Prototypes . | . . . Parts Lost 4 | . 4 . Power . | . . . Propulsion 2 | . 2 . Utility . | . . . Weapon 2 | . 2 . Highest Loss Streak 2 | . 2 . Average Slot Usage (%) 79 | . 79 100 Engine 5 | . 5 14 Treads 20 | . 20 . Wheel 3 | . 3 28 Storage 20 | . 20 28 Energy Gun 1 | . 1 . Ballistic Gun 24 | . 24 28 Launcher 1 | . 1 . Naked Turns 2 | . 2 . Heaviest Build 41 | 3 41 41 Greatest Support 40 | 3 40 32 Greatest Overweight (x) 12 | . 12 1 Average Overweight (x) . | . . 1 Largest Inventory Capacity 16 | 4 16 16 Average Capacity 12 | 4 12 16 Most Carried 16 | 4 16 16 Average Carried 10 | 2 10 16 Final Capacity 16 | 4 16 16 Final Carried 16 | 4 16 16 Class Distribution -------------------- 100% | Mutant Dominant Class ---------------- Mutant | -10/Materials Mutant | -10/Mines Resources | -11 -10 -10 ----------- Run | Scr Mat Min Matter Collected 918 | 252 631 35 Remotely . | . . . Salvage Created 1166 | 106 1016 44 Parts 63 | 5 56 2 Haulers Intercepted 1 | . 1 . Recyclers Shooed 4 | 2 2 . Parts Field Recycled . | . . . Retrieved Matter . | . . . Parts Self-Destructed . | . . . Prevented . | . . . Kills | -11 -10 -10 ------- Run | Scr Mat Min Combat Hostiles Destroyed 25 | . 24 1 Guns 16 | . 15 1 AOE 9 | . 9 . Classes Destroyed 8 | 2 6 . Worker 1 | . 1 . Builder 1 | . 1 . Tunneler 1 | 1 . . Hauler 1 | . 1 . Recycler 4 | 1 3 . Operator 1 | . 1 . Swarmer 3 | . 3 . Grunt 22 | . 21 1 Best Kill Streak 6 | 2 6 1 Combat Bots Only 6 | . 6 1 Max Kills in Single Turn 1 | 1 1 1 Gunslinging . | . . . Exploded 1 | . 1 . Melee . | . . . Uniques/NPCs Destroyed . | . . . Combat | -11 -10 -10 -------- Run | Scr Mat Min Damage Taken 1068 | . 918 150 Core 267 | . 215 52 Absorbed by Shields . | . . . Core Remaining (%) 100 | 100 . . Volleys Fired 136 | 7 121 8 Largest 2 | 2 2 2 Hottest 60 | 40 60 43 Shots Fired 249 | 14 220 15 Gun 234 | 14 205 15 Cannon . | . . . Launcher 15 | . 15 . Special . | . . . Kinetic 229 | 14 200 15 Thermal . | . . . Explosive 15 | . 15 . Electromagnetic 5 | . 5 . Robot Hit Streak 17 | 3 17 5 Robot Miss Streak 6 | 3 6 2 Penetration Max . | . . . Secondary Targets . | . . . Shots Hit Robots 161 | 7 143 11 Core Hits 71 | 3 65 3 Critical Hits . | . . . Critical Kills . | . . . Critical Parts Destroyed . | . . . Melee Attacks . | . . . Impact . | . . . Slashing . | . . . Piercing . | . . . Sneak Attacks . | . . . Combat Hostiles . | . . . Follow-up Attacks . | . . . Damage Inflicted 2042 | 58 1879 105 Guns 1231 | 58 1068 105 Cannons . | . . . Explosions 810 | . 810 . Melee . | . . . Ramming 1 | . 1 . Kinetic 1178 | 58 1015 105 Thermal . | . . . Explosive 810 | . 810 . Electromagnetic 53 | . 53 . Impact . | . . . Slashing . | . . . Piercing . | . . . Highest Corruption 3 | . 3 3 Average Corruption 1 | . 1 3 Corruption Purged . | . . . Effects 9 | . 7 2 Message Errors 3 | . 2 1 Data Loss (minor) 4 | . 4 . Targeting Errors 1 | . 1 . Weapon Failures 1 | . . 1 Overload Shots . | . . . Overflow Damage 24 | . 24 . Projectiles . | . . . Explosions 24 | . 24 . Melee . | . . . Knockbacks . | . . . Impact . | . . . Kinetic . | . . . Secondary . | . . . Self-Inflicted Damage 17 | . 17 . Shots 2 | . 2 . Rammed 1 | . 1 . Targets Rammed 1 | . 1 . Kicked . | . . . Crushed . | . . . Highest Temperature 22 | . 15 22 Average Temperature 6 | . 5 12 Received Heat Transfer 471 | . 384 87 Siege Activations . | . . . Robots Corrupted . | . . . Combat Hostiles . | . . . Parts Fried . | . . . Impact Corruptions . | . . . Robots Melted . | . . . Combat Hostiles . | . . . Parts Melted . | . . . Heat Transferred . | . . . Parts Sabotaged . | . . . Parts Stolen . | . . . Parts Stripped . | . . . Power Chain Reactions . | . . . Missiles Intercepted . | . . . Alert | -11 -10 -10 ------- Run | Scr Mat Min Peak Influence 340 | 10 340 152 Initial 132 | . 6 132 Average 142 | 3 147 138 Maximum Alert Level 1 | . 1 . Low Security (%) 71 | 100 69 100 Level 1 28 | . 30 . Level 2 . | . . . Level 3 . | . . . Level 4 . | . . . Level 5 . | . . . High Security . | . . . Max Security . | . . . Squads Dispatched 9 | . 9 . Investigation 8 | . 8 . Extermination . | . . . Reinforcement 1 | . 1 . Assault . | . . . Garrison . | . . . Intercept . | . . . Construction Impeded . | . . . Haulers Reinforced . | . . . Stealth | -11 -10 -10 --------- Run | Scr Mat Min Distress Signals 1 | . 1 . Communications Jammed . | . . . Distress Signals . | . . . Times Spotted 39 | . 37 2 Peak Tracking Total 4 | . 4 2 Tactical Retreats 3 | . 3 . Traps | -11 -10 -10 ------- Run | Scr Mat Min Traps Triggered 6 | . 6 . Indirectly . | . . . Trap Hack Attempts . | . . . Triggered . | . . . Disarmed . | . . . Reprogrammed . | . . . Reused . | . . . Traps Extracted . | . . . Installed . | . . . Triggered . | . . . Machines | -11 -10 -10 ---------- Run | Scr Mat Min Machines Disabled . | . . . Max in Single Turn . | . . . Machines Sabotaged . | . . . Garrisons Compromised . | . . . Overloaded Fab Kills . | . . . Fab Network Shutdowns . | . . . Hacking | -11 -10 -10 --------- Run | Scr Mat Min Machines Accessed 9 | . 9 . Terminals 6 | . 6 . Fabricators . | . . . Repair Stations 1 | . 1 . Recycling Units 2 | . 2 . Scanalyzers . | . . . Garrison Access . | . . . Total Hacks 28 | . 28 . Successful 14 | . 14 . Failed 13 | . 13 . Catastrophic 2 | . 2 . Database Lockouts 1 | . 1 . Manual 17 | . 17 . Terminals 21 | . 21 . Fabricators . | . . . Repair Stations 2 | . 2 . Recycling Units 5 | . 5 . Scanalyzers . | . . . Garrison Access . | . . . Terminal Hacks 4 | . 4 . Part Schematic 1 | . 1 . Robot Analysis 2 | . 2 . Terminal Index 1 | . 1 . Fabricator Hacks . | . . . Repair Station Hacks 2 | . 2 . Scan Component 1 | . 1 . Repair 1 | . 1 . Recycling Unit Hacks 2 | . 2 . Retrieve Components 2 | . 2 . Scanalyzer . | . . . Garrison Access Hacks . | . . . Unauthorized Hacks 6 | . 6 . Terminals 4 | . 4 . Botnet 4 | . 4 . Fabricators . | . . . Repair Stations . | . . . Recycling Units 2 | . 2 . Tunnel 2 | . 2 . Scanalyzers . | . . . Garrison Access . | . . . Data Cores Recovered . | . . . Used . | . . . Hacking Detections 7 | . 7 . Full Trace Events 5 | . 5 . Feedback Events 2 | . 2 . Corruption 2 | . 2 . Feedback Blocked . | . . . Robot Schematics Acquired . | . . . Robots Built . | . . . Matter . | . . . Time . | . . . Total Robot Build Rating . | . . . Part Schematics Acquired 1 | . 1 . Parts Built . | . . . Matter . | . . . Time . | . . . Total Part Build Rating . | . . . Parts Repaired 1 | . 1 . Time 26 | . 26 . Parts Recycled . | . . . Recycled Matter . | . . . Retrieved Matter . | . . . Retrieved Components 12 | . 12 . Parts Scanalyzed . | . . . Part Schematics Acquired . | . . . Parts Damaged . | . . . Bothacking | -11 -10 -10 ------------ Run | Scr Mat Min Used RIF Installer . | . . . Robots Hacked . | . . . Non-combat . | . . . Combat . | . . . Robot Hacks Applied . | . . . Relay Couplers Released . | . . . Robots Rewired . | . . . Allies Hacked . | . . . Hacks Repelled . | . . . Allies | -11 -10 -10 -------- Run | Scr Mat Min Total Allies . | . . . Largest Group . | . . . Highest-Rated Group . | . . . Highest-Rated Ally . | . . . Total Orders . | . . . Ally Attacks . | . . . Total Damage . | . . . Kills . | . . . Allies Corrupted . | . . . Allies Melted . | . . . Intel | -11 -10 -10 ------- Run | Scr Mat Min Robot Analysis Total 2 | . 2 . Derelict Logs Recovered . | . . . Drone Launches . | . . . Drone Recoveries . | . . . Exploration | -11 -10 -10 ------------- Run | Scr Mat Min Turns Passed 1523 | 48 1446 29 Spaces Moved 838 | 37 794 7 Core 216 | 37 179 . Treads 476 | . 476 . Legs 1 | . 1 . Wheels 145 | . 138 7 Hover . | . . . Flight . | . . . Fastest Speed 50 | 50 50 110 Average Speed 130 | 50 133 110 Slowest Speed 650 | 50 650 110 Overloaded Moves . | . . . Propulsion Burnouts . | . . . Robots Hopped . | . . . Cave-ins Triggered . | . . . Exploration Rate (%) 34 | 3 97 4 Regions Visited 2 Branch Regions 1 Pre-discovered Areas 2 | . 2 . Known Exits Taken . | . . . Unknown Exits Taken 2 | 1 1 . Scrap Searched . | . . . Spaces Dug . | . . . Terrain Destroyed 104 | . 104 . Melee . | . . . Projectile . | . . . AOE 104 | . 104 . Terrain Rammed . | . . . Walls Destroyed . | . . . Machines Disabled . | . . . Actions | -11 -10 -10 --------- Run | Scr Mat Min Total 1058 | 51 992 15 Wait 21 | . 21 . Move 836 | 36 793 7 Hop . | . . . Pick Up 23 | 4 19 . Fast Attach 18 | 4 14 . Attach 4 | . 4 . Detach 2 | . 2 . Swap 9 | . 9 . Drop 8 | . 8 . Fire 136 | 7 121 8 Melee . | . . . Ram . | . . . Kick . | . . . Crush 1 | . 1 . Escape Stasis . | . . . Rewire . | . . . Trap . | . . . Miscellaneous . | . . . Route ------- -11/Scrapyard -10/Materials (discovered 5 exits: [*Mat x3] / [*Min x2]) -10/Mines History --------- Turn | Location | Event 8 | -11/Scrapyard | Discovered new exit (range 14) 49 | -11/Scrapyard | Entered Materials 140 | -10/Materials | Discovered new exit (range 14) 313 | -10/Materials | Build established: Mutant 364 | -10/Materials | Discovered new exit (range 16) 456 | -10/Materials | Repaired Lgt. Treads 800 | -10/Materials | Core integrity fell below 50% 829 | -10/Materials | Discovered new exit (range 10) 970 | -10/Materials | Central database locked down 981 | -10/Materials | Discovered new exit (range 16) 1146 | -10/Materials | Discovered new exit (range 10) 1269 | -10/Materials | Core integrity fell below 20% 1495 | -10/Materials | Entered Mines 1524 | -10/Mines | Destroyed by G-47 Trooper with Particle Gun Last Messages --------------- 01399_ ALERT: Suspicious activity at Recycling Unit M002. Dispatching Investigation squad. 01400_ Dropped Lgt. Assault Rifle. 01401_ Acquired Unknown Ballistic Gun. 01401_ Identified Autogun. 01403_ Dropped Lgt. Assault Rifle. 01403_ Acquired Lgt. Assault Rifle. 01424_ K-01 Serf collects debris. 01424_ G-34 Mercenary destroyed. 01427_ K-01 Serf collects debris. 01430_ Acquired 1 matter. 01430_ K-01 Serf collects debris. 01437_ Acquired 39 matter. LOCATION=UNKNOWN GOAL=ESCAPE Something is scanning the area. 01514_ 2<#G,EY LNKQSX<8T18MA4DGZ